Cogmind - Beta 14 @@@ ROGUE MODE // 2024.12.22 @ 18:14:12 Player: Charango24 Result: Self-destructed Performance ------------- Evolutions (2) 1000 Regions Visited (5) 1000 Robots Destroyed (23) 115 Value Destroyed (624) 624 Prototype IDs (1) 20 Alien Tech Used (0) 0 Bonus (53) 53 TOTAL SCORE: 2812 Bonus ------- Follower Combat Kills 53 Cogmind --------- Core Integrity 92/550 Matter 300/300 Energy 100/100 System Corruption 3% Temperature Cool (9) Movement Core (50) Location -8/Materials Parts ------- > --- POWER (2) -------- (None) > --- PROPULSION (3) --- (None) > --- UTILITY (4) ------ Visual Processing Unit Hacking Suite > --- WEAPON (2) ------- (None) > --- INVENTORY (5) ---- Improved Heat Sink Makeshift Terrain Scanner Melee Analysis Suite Core Shielding Light Armor Plating Peak State ------------ > --- POWER ------------ Light Ion Engine > --- PROPULSION ------- Aluminum Leg Makeshift Leg > --- UTILITY ---------- Small Storage Unit Visual Processing Unit Experimental Sensor Array Makeshift Terrain Scanner > --- WEAPON ----------- Light Assault Rifle Light Assault Rifle > --- INVENTORY -------- Melee Analysis Suite Core Shielding Light Armor Plating Hacking Suite [Rating: 27] Favorites ----------- Power Ion Engine Engine Ion Engine Power Core Light Nuclear Core Propulsion Aluminum Leg Leg Aluminum Leg Utility Small Storage Unit Device Seismic Detector Storage Small Storage Unit Processor Visual Processing Unit Hackware Hacking Suite Weapon Light Assault Rifle Energy Gun EM Shotgun Ballistic Gun Light Assault Rifle Ballistic Cannon Light Cannon Build | -11 -10 -10 -10 -9 -8 ------- Run | Yrd Mat Min Exi Min Mat Slots Evolved 4 | . . . . . 4 Power 1 | . . . . . 1 Propulsion 1 | . . . . . 1 Utility 2 | . . . . . 2 Weapon . | . . . . . . Parts Attached 23 | 7 2 . 4 5 5 Power 4 | 1 . . 1 1 1 Engine 3 | 1 . . 1 . 1 Core 1 | . . . . 1 . Reactor . | . . . . . . Propulsion 6 | 2 1 . 1 1 1 Treads . | . . . . . . Leg 6 | 2 1 . 1 1 1 Wheel . | . . . . . . Hover . | . . . . . . Flight . | . . . . . . Utility 8 | 2 . . 2 1 3 Device 4 | 1 . . 2 . 1 Storage 2 | 1 . . . 1 . Processor 1 | . . . . . 1 Hackware 1 | . . . . . 1 Protection . | . . . . . . Artifact . | . . . . . . Weapon 5 | 2 1 . . 2 . Energy Gun 1 | . . . . 1 . Energy Cannon . | . . . . . . Ballistic Gun 3 | 2 . . . 1 . Ballistic Cannon 1 | . 1 . . . . Launcher . | . . . . . . Special Weapon . | . . . . . . Impact Weapon . | . . . . . . Slashing Weapon . | . . . . . . Piercing Weapon . | . . . . . . Special Melee Weapon . | . . . . . . Unidentified Prototypes 1 | . . . . . 1 Parts Lost 12 | . 1 . . 4 7 Power 3 | . 1 . . 1 1 Propulsion 3 | . . . . 1 2 Utility 2 | . . . . . 2 Weapon 4 | . . . . 2 2 Highest Loss Streak 4 | . 1 . . 3 4 To Critical Strikes . | . . . . . . Average Slot Usage (%) 88 | . 96 85 88 91 60 Engine 5 | . 11 . 3 5 4 Leg 26 | . 27 28 28 23 13 Device 13 | . 14 14 14 14 8 Storage 13 | . 14 14 14 13 7 Ballistic Gun 14 | . 14 14 14 18 9 Ballistic Cannon 11 | . 13 14 14 5 . Peak Build Rating 27 | 7 7 7 17 20 27 Average Rating 10 | 6 6 6 12 17 20 On Entrance 8 | . 7 6 7 17 16 Naked Turns . | . . . . . . Heaviest Build 15 | 13 15 10 14 15 11 Greatest Support 30 | 20 20 20 30 30 30 Greatest Overweight (x) 1 | 1 . . . . . Average Overweight (x) . | . . . . . . Largest Inventory Capacity 8 | 8 8 8 8 8 8 Average Capacity 7 | 7 8 8 8 7 7 Most Carried 8 | 4 6 6 8 8 8 Average Carried 5 | 1 3 5 6 6 5 Final Capacity 8 | 8 8 8 8 8 5 Final Carried 8 | 1 5 6 6 8 5 Class Distribution -------------------- 100% | Mutant Dominant Class ---------------- Mutant | -10/Materials Mutant | -10/Mines Mutant | -10/Exiles Mutant | -9/Mines Mutant | -8/Materials Resources | -11 -10 -10 -10 -9 -8 ----------- Run | Yrd Mat Min Exi Min Mat Matter Collected 722 | 289 235 10 26 162 . Remotely . | . . . . . . Salvage Created 862 | 77 258 . 26 447 54 Parts 57 | 6 20 . . 26 5 Haulers Intercepted . | . . . . . . Recyclers Shooed 1 | 1 . . . . . Parts Field Recycled . | . . . . . . Retrieved Matter . | . . . . . . Parts Self-Destructed . | . . . . . . Prevented . | . . . . . . Kills | -11 -10 -10 -10 -9 -8 ------- Run | Yrd Mat Min Exi Min Mat Combat Hostiles Destroyed 18 | . 8 . . 9 1 Guns 11 | . 2 . . 8 1 Cannons 6 | . 6 . . . . AOE 1 | . . . . 1 . Classes Destroyed 9 | 2 4 . . 2 1 Tunneler 2 | 1 . . . 1 . Recycler 2 | 1 . . . 1 . Operator 1 | . 1 . . . . Watcher 1 | . 1 . . . . Swarmer 3 | . 3 . . . . Grunt 12 | . 5 . . 7 . Duelist 1 | . . . . 1 . Sentry 1 | . . . . . 1 Assembled 1 | . . . . 1 . Best Kill Streak 5 | 1 4 . . 5 1 Combat Bots Only 4 | . 3 . . 4 1 Max Kills in Single Turn 2 | 1 1 . . 2 1 Gunslinging 1 | . . . . 1 . Exploded 1 | . . . . 1 . Melee . | . . . . . . Uniques/NPCs Destroyed . | . . . . . . Combat | -11 -10 -10 -10 -9 -8 -------- Run | Yrd Mat Min Exi Min Mat Hostile Shots Fired 185 | . 48 . . 48 89 Missed 59 | . 16 . . 10 33 Damage Taken 1707 | . 372 . 11 492 832 Core 668 | . 97 . . 113 458 Absorbed by Shields . | . . . . . . Core Remaining (%) 58 | 100 . . . 16 . Volleys Fired 111 | 17 44 . 5 34 11 Largest 2 | 2 2 . 2 2 2 Hottest 65 | 40 55 . 55 65 40 Shots Fired 221 | 34 88 . 11 67 21 Gun 167 | 34 45 . 6 61 21 Cannon 54 | . 43 . 5 6 . Launcher . | . . . . . . Special . | . . . . . . Kinetic 209 | 34 88 . 11 55 21 Thermal . | . . . . . . Explosive . | . . . . . . Electromagnetic 12 | . . . . 12 . Robot Hit Streak 14 | 3 6 . 7 14 5 Robot Miss Streak 5 | 3 5 . . 4 1 Penetration Max . | . . . . . . Secondary Targets 2 | . . . . 2 . Max Gunslinging Chain 1 | . . . . 1 . Shots Hit Robots 128 | 19 41 . 7 45 16 Core Hits 59 | 4 19 . 5 23 8 Critical Kills 1 | . . . . 1 . Critical Parts Destroyed 2 | . 1 . . . 1 Critical Strikes 3 | . 1 . . 1 1 Destroy 3 | . 1 . . 1 1 Melee Attacks . | . . . . . . Impact . | . . . . . . Slashing . | . . . . . . Piercing . | . . . . . . Sneak Attacks . | . . . . . . Combat Hostiles . | . . . . . . Follow-up Attacks . | . . . . . . Damage Inflicted 1534 | 168 515 . 110 557 184 Guns 902 | 167 182 . 33 402 118 Cannons 453 | . 333 . 52 68 . Explosions 87 | . . . . 87 . Melee . | . . . . . . Ramming 92 | 1 . . 25 . 66 Kinetic 1176 | 167 515 . 85 291 118 Thermal 87 | . . . . 87 . Explosive . | . . . . . . Electromagnetic 179 | . . . . 179 . Impact . | . . . . . . Slashing . | . . . . . . Piercing . | . . . . . . Highest Corruption 3 | . 3 3 3 2 3 Average Corruption 2 | . 2 3 2 2 2 Corruption Purged 3 | . . . 3 . . Corruption Blocked . | . . . . . . Effects 28 | . 2 2 19 5 . Message Errors 5 | . . 2 1 2 . Matter Fused 8 | . . . 7 1 . Heat Flow Errors 1 | . . . 1 . . Energy Discharges 5 | . . . 5 . . Parts Rejected 1 | . 1 . . . . Data Loss (minor) 4 | . 1 . 2 1 . Data Loss (major) 2 | . . . 2 . . Misfires 2 | . . . 1 1 . Overload Shots . | . . . . . . Overflow Damage 7 | . 7 . . . . Projectiles 7 | . 7 . . . . Explosions . | . . . . . . Melee . | . . . . . . Knockbacks 5 | . 5 . . . . Impact . | . . . . . . Kinetic 4 | . 4 . . . . Secondary 1 | . 1 . . . . Self-Inflicted Damage 41 | . . . 11 8 22 Shots 1 | . . . . 1 . Rammed 15 | . . . . . 15 Targets Rammed 33 | 1 . . 7 . 25 Kicked 18 | 1 . . 7 . 10 Crushed . | . . . . . . Highest Temperature 100 | . 61 . 100 100 5 Average Temperature 25 | . 16 . 20 39 5 Received Heat Transfer 678 | . 168 . . 204 306 Siege Activations . | . . . . . . Robots Corrupted . | . . . . . . Combat Hostiles . | . . . . . . Parts Fried . | . . . . . . Impact Corruptions . | . . . . . . Robots Melted . | . . . . . . Combat Hostiles . | . . . . . . Parts Melted . | . . . . . . Heat Transferred 50 | . . . . 50 . Parts Sabotaged . | . . . . . . Parts Stolen . | . . . . . . Parts Stripped . | . . . . . . Power Chain Reactions 2 | . . . . 2 . Alert | -11 -10 -10 -10 -9 -8 ------- Run | Yrd Mat Min Exi Min Mat Peak Influence 253 | 10 253 42 . 243 169 Initial 94 | . . 42 . . 94 Average 83 | 5 112 42 . 157 126 Maximum Alert Level 1 | . 1 . . 1 . Low Security (%) 84 | 100 73 100 . 63 100 Level 1 15 | . 26 . . 36 . Level 2 . | . . . . . . Level 3 . | . . . . . . Level 4 . | . . . . . . Level 5 . | . . . . . . High Security . | . . . . . . Max Security . | . . . . . . Squads Dispatched 6 | . 2 . . . 4 Investigation 1 | . . . . . 1 Extermination . | . . . . . . Reinforcement 4 | . 2 . . . 2 Assault . | . . . . . . Garrison 1 | . . . . . 1 Intercept . | . . . . . . Searches Triggered . | . . . . . . Construction Impeded . | . . . . . . Haulers Reinforced . | . . . . . . Active Scanning Responses . | . . . . . . Cargo Convoy Interrupts . | . . . . . . Stealth | -11 -10 -10 -10 -9 -8 --------- Run | Yrd Mat Min Exi Min Mat Distress Signals 1 | . 1 . . . . Communications Jammed . | . . . . . . Distress Signals . | . . . . . . Times Spotted 44 | . 18 . . 13 13 Peak Tracking Total 7 | . 4 . . 4 7 Tactical Retreats 3 | . 1 . . 1 1 Traps | -11 -10 -10 -10 -9 -8 ------- Run | Yrd Mat Min Exi Min Mat Traps Triggered 2 | . 2 . . . . Indirectly . | . . . . . . Trap Hack Attempts . | . . . . . . Triggered . | . . . . . . Disarmed . | . . . . . . Reprogrammed . | . . . . . . Reused . | . . . . . . Traps Extracted . | . . . . . . Installed . | . . . . . . Triggered . | . . . . . . Machines | -11 -10 -10 -10 -9 -8 ---------- Run | Yrd Mat Min Exi Min Mat Machines Disabled 1 | . 1 . . . . Max in Single Turn 1 | . 1 . . . . Machines Repaired . | . . . . . . Machines Dismantled . | . . . . . . Machines Sabotaged . | . . . . . . Overloaded Fab Kills . | . . . . . . Hacking | -11 -10 -10 -10 -9 -8 --------- Run | Yrd Mat Min Exi Min Mat Machines Accessed 7 | . 1 . 4 1 1 Terminals 3 | . 1 . . 1 1 Fabricators . | . . . . . . Repair Stations . | . . . . . . Recycling Units . | . . . . . . Scanalyzers . | . . . . . . Garrison Access . | . . . . . . Total Hacks 60 | . 6 . 49 3 2 Successful 55 | . 3 . 49 3 . Failed 5 | . 3 . . . 2 Catastrophic 1 | . . . . . 1 Database Lockouts . | . . . . . . Manual 1 | . . . 1 . . Terminals 11 | . 6 . . 3 2 Fabricators . | . . . . . . Repair Stations . | . . . . . . Recycling Units . | . . . . . . Scanalyzers . | . . . . . . Garrison Access . | . . . . . . Terminal Hacks 55 | . 3 . 49 3 . Record 49 | . . . 49 . . Level Access Points 1 | . 1 . . . . Branch Access Points 1 | . 1 . . . . Locate Traps 1 | . 1 . . . . Dispatch Records 1 | . . . . 1 . Investigation Status 1 | . . . . 1 . Zone Layout 1 | . . . . 1 . Fabricator Hacks . | . . . . . . Repair Station Hacks . | . . . . . . Recycling Unit Hacks . | . . . . . . Scanalyzer . | . . . . . . Garrison Access Hacks . | . . . . . . Unauthorized Hacks . | . . . . . . Terminals . | . . . . . . Fabricators . | . . . . . . Repair Stations . | . . . . . . Recycling Units . | . . . . . . Scanalyzers . | . . . . . . Garrison Access . | . . . . . . Data Cores Recovered . | . . . . . . Used . | . . . . . . Hacking Detections 2 | . 1 . . . 1 Full Trace Events 1 | . . . . . 1 Feedback Events . | . . . . . . Feedback Blocked . | . . . . . . Robot Schematics Acquired . | . . . . . . Robots Built . | . . . . . . Authchips . | . . . . . . Time . | . . . . . . Total Robot Build Rating . | . . . . . . Part Schematics Acquired . | . . . . . . Parts Built . | . . . . . . Authchips . | . . . . . . Time . | . . . . . . Total Part Build Rating . | . . . . . . Parts Repaired . | . . . . . . Time . | . . . . . . Parts Recycled . | . . . . . . Recycled Matter . | . . . . . . Retrieved Matter . | . . . . . . Retrieved Components . | . . . . . . Parts Scanalyzed . | . . . . . . Part Schematics Acquired . | . . . . . . Parts Damaged . | . . . . . . Bothacking | -11 -10 -10 -10 -9 -8 ------------ Run | Yrd Mat Min Exi Min Mat Used RIF Installer . | . . . . . . Robots Hacked . | . . . . . . Non-combat . | . . . . . . Combat . | . . . . . . Robot Hacks Applied . | . . . . . . Relay Couplers Released . | . . . . . . Fabnet Peak Effective % . | . . . . . . Robots Rewired 3 | . . . 3 . . Allies Hacked . | . . . . . . Hacks Repelled . | . . . . . . Allies | -11 -10 -10 -10 -9 -8 -------- Run | Yrd Mat Min Exi Min Mat Total Allies 3 | . . . 3 . . Largest Group 3 | . . . 3 3 . Highest-Rated Group 24 | . . . 24 24 . Highest-Rated Ally 8 | . . . 8 8 . Total Orders . | . . . . . . Ally Attacks 11 | . . . . 11 . Total Damage 88 | . . . . 88 . Kills 5 | . . . . 5 . Allies Corrupted . | . . . . . . Allies Melted . | . . . . . . Intel | -11 -10 -10 -10 -9 -8 ------- Run | Yrd Mat Min Exi Min Mat Robot Analysis Total . | . . . . . . Derelict Logs Recovered 2 | . . 2 . . . Drone Launches . | . . . . . . Drone Recoveries . | . . . . . . Exploration | -11 -10 -10 -10 -9 -8 ------------- Run | Yrd Mat Min Exi Min Mat Turns Passed 3242 | 446 570 345 1372 378 131 Spaces Moved 1876 | 277 317 287 772 175 48 Core 18 | 16 . . . . 2 Treads . | . . . . . . Legs 1858 | 261 317 287 772 175 46 Wheels . | . . . . . . Hover . | . . . . . . Flight . | . . . . . . Fastest Speed 50 | 50 120 120 120 130 50 Average Speed 123 | 118 120 120 126 132 128 Slowest Speed 140 | 120 120 120 130 140 140 Overloaded Moves . | . . . . . . Propulsion Burnouts . | . . . . . . Robots Hopped . | . . . . . . Cave-ins Triggered . | . . . . . . Exploration Rate (%) 46 | 11 61 62 93 48 4 Regions Visited 5 Branch Regions 3 Pre-discovered Areas 4 | . . 3 1 . . Known Exits Taken 1 | . 1 . . . . Unknown Exits Taken 4 | 1 . 1 1 1 . Scrap Searched 3 | . . 2 . 1 . Spaces Dug . | . . . . . . Terrain Destroyed 9 | . . . . 9 . Melee . | . . . . . . Projectile . | . . . . . . AOE 9 | . . . . 9 . Terrain Rammed 1 | . . . 1 . . Walls Destroyed . | . . . . . . Machines Disabled . | . . . . . . Actions | -11 -10 -10 -10 -9 -8 --------- Run | Yrd Mat Min Exi Min Mat Total 2602 | 367 428 287 1156 266 98 Wait 467 | 58 60 . 300 44 5 Move 1871 | 276 316 286 771 174 48 Hop . | . . . . . . Pick Up 26 | 8 5 1 4 6 2 Fast Attach . | . . . . . . Attach 22 | 7 2 . 4 4 5 Detach 5 | . 1 . 2 1 1 Swap 1 | . . . . 1 . Drop 5 | . . . 2 2 1 Fire 111 | 17 44 . 5 34 11 Melee . | . . . . . . Ram 16 | . . . 1 . 15 Kick 18 | 1 . . 7 . 10 Crush . | . . . . . . Escape Stasis . | . . . . . . Rewire 60 | . . . 60 . . Trap . | . . . . . . Miscellaneous . | . . . . . . Route ------- -11/Scrapyard -10/Materials (discovered 4 exits: Mat x3 / *Min) -10/Mines (discovered 2 exits: *Mat / *Exi) -10/Exiles (discovered 2 exits: *Min x2) -9/Mines -8/Materials History --------- Turn | Location | Event 13 | -11/Scrapyard | Discovered new exit (range 15) 447 | -11/Scrapyard | Entered Materials 448 | -10/Materials | Build established: Mutant 624 | -10/Materials | Identified exit to Materials 624 | -10/Materials | Identified exit to Mines 1017 | -10/Materials | Entered Mines 1029 | -10/Mines | Met a Derelict bent on vengeance 1054 | -10/Mines | Learned location of Storage (-7) 1059 | -10/Mines | Learned location of Zion (-6) 1189 | -10/Mines | Discovered exit to Materials (range 12) 1271 | -10/Mines | Found a damaged Exp. Sensor Array with a note attached 1273 | -10/Mines | Found Prototype Device 1309 | -10/Mines | Deemed a non-threat by the Exiles lab entrance 1310 | -10/Mines | Discovered new exit (range 5) 1362 | -10/Mines | Entered Exiles 1362 | -10/Exiles | Found Exiles lab destroyed 1380 | -10/Exiles | Discovered new exit (range 14) 1738 | -10/Exiles | Discovered new exit (range 14) 2734 | -10/Exiles | Entered Mines 2734 | -9/Mines | Accompanied by 3 allies 2855 | -9/Mines | Discovered new exit (range 11) 2872 | -9/Mines | Core integrity fell below 50% 2888 | -9/Mines | Lost 3 allies 2923 | -9/Mines | Excavation squad dispatched 2923 | -9/Mines | A large section of the Mines collapsed 3044 | -9/Mines | Lost 3 parts (1p1n1w) 3048 | -9/Mines | Core integrity fell below 20% 3112 | -9/Mines | Entered Materials 3112 | -8/Materials | Evolved 4 slots: Power x1, Propulsion x1, Utility x2 3125 | -8/Materials | Identified Exp. Sensor Array 3154 | -8/Materials | Garrison activated, responded to threat 3213 | -8/Materials | Lost 3 parts (1p2w) 3232 | -8/Materials | Core integrity fell below 50% 3243 | -8/Materials | Self-destructed Last Messages --------------- 03222_ Slammed into Y-45 Defender. 03223_ Slug penetrates Wall. 03223_ Slammed into Y-45 Defender. 03224_ Destabilizing: System corrupted (+1). 03225_ Slammed into Y-45 Defender. 03226_ Sml. Storage Unit destroyed. 03226_ Slammed into Y-45 Defender. 03228_ Critical hit (Burn: +37). 03228_ Slammed into Y-45 Defender. 03229_ Exp. Sensor Array broken. 03229_ Destabilizing: Short circuit. 03230_ Slammed into Y-45 Defender. 03232_ Destabilizing: Core damaged (-16). 03233_ Slammed into Y-45 Defender. 03233_ Destabilizing: System corrupted (+2). 03234_ Slammed into Y-45 Defender. 03237_ Broken Exp. Sensor Array destroyed. 03237_ Slammed into Y-45 Defender. 03241_ R-06 Scavenger collects Aluminum Leg. 03243_ Slug penetrates Y-45 Defender. Map ----- +----------------------------------------------------+ | ???????????????????????????????? | | ???????????????????????????????? | | ???????????????????????????????? | | ???????????????????????????????? | | ???????????????????????????????? | | ???????????????????????????????? | | ???????????????????????????????? | | ???????????????????????????????? | | ???????????????????????????????? | | ???????????????????????????????? | | ???????????????????????????????? | | ???????????????????????????????? | | ???????????????????????????????? | | ???????????????????????????????? | | ???????????????????????????????? | | ???????????????????????????????? | | ???????????????????????????????? | | ???????????????????????????????? | | ????????????#??????????????????? | | ???????????????????????????????? | | ???????????????????????????????? | | ?????????????? ????????????????? | | ???????????????????????????????? | | ?????##########????????????????? | | ?????# % % #????????????????? | | ?????# @%%""" #????????????????? | | ?????# Y%""" #????????????????? | | ?????# %""" #????????????????? | | ?????# % #????????????????? | | ?????# % #????????????????? | | ?????# " "g % #????????????????? | | ?????# "T"gY #????????????????# | | ?????# """ #######???????? # | | ?????######h### ####### # | | ???????# =g # | | #??????# !% # | | ???????# =* r # | | ???????######## ########???? | | ??????????????## ##??????????? | | ???????????????# #???????????? | | ???????????????# #??? ???????? | | ???????????????/ / ??????????? | | ???????????????# # ?????????? | | ???????????????# # "????????? | | ???????????????# #? ???????? | | ???????????????# #??##???????? | | ???????????????# #?? ????????? | | ???????????????# #???????????? | | ???????????????? +???????????? | | ???????????????? #???????????? | +----------------------------------------------------+ Best States ------------- Heat Dissipation 31 Energy Generation 14 Energy Capacity 250 Matter Stores 300 Matter Capacity 300 Sight Range 18 Robot Scan Range 20 Terrain Scan Range 18 Terrain Scan Density 10 Evasion (%) 55 Offensive Hacking 10 Item Schematics ----------------- None Robot Schematics ------------------ None Fabricated ------------ Nothing Alien Tech Used ----------------- None Achievements -------------- None Challenges ------------ None Game ------ Seed WaveBoltAxe Manual? 0 Play Time 00:34:33 Cumulative 11.8 hours Start 2024.12.22 @ 15:07:00 End 2024.12.22 @ 18:14:12 Sessions 3 Manual Loads 0 Difficulty Rogue Special Mode None Game No. 18 Rogue 5 Adventurer 13 Explorer 0 Win Type - Total 0 Types 0/0/0/0/0/0/0/0/0 Lore% 8 Gallery% 20 Achievement% 19 Wizard Run 0 Options --------- Layout 1 ASCII 0 Keyboard 1 Movement Numpad Keybinds 0 Fullscreen 2 Font 24/Smallcaps Map View 50x35 Zoom Use 0% Tactical HUD 1 Map Filters NONE Filters NONE Steam 1 RUN: d16e3376-06d7-4f13-b096-7d03c8d96880